Cogmind - Beta 13 @@@ ROGUE MODE // 2024.07.23 @ 21:24:19 Player: CONM Result: Destroyed by 3D-YTF(R) with Subdweller Machine Gun Performance ------------- Evolutions (0) 0 Regions Visited (2) 400 Robots Destroyed (39) 195 Value Destroyed (993) 993 Prototype IDs (0) 0 Alien Tech Used (0) 0 Bonus (0) 0 TOTAL SCORE: 1588 Bonus ------- None Cogmind --------- Core Integrity 0/250 Matter 46/300 Energy 100/100 System Corruption 0% Temperature Cool (0) Movement Core (400) Ox7 Location -10/Subcaves Parts ------- > --- POWER (1) -------- (None) > --- PROPULSION (2) --- (None) > --- UTILITY (2) ------ Scrap Shield > --- WEAPON (2) ------- Heavy Assault Rifle Heavy Assault Rifle > --- INVENTORY (5) ---- Machine Analyzer Utility Shielding Hacking Suite Peak State ------------ > --- POWER ------------ Light Ion Engine > --- PROPULSION ------- Wheel Wheel > --- UTILITY ---------- Medium Storage Unit Improved Targeting Computer > --- WEAPON ----------- Heavy Assault Rifle Heavy Assault Rifle > --- INVENTORY -------- Improved Heat Sink Small Storage Unit Machine Analyzer Seismic Detector Utility Shielding Hacking Suite Heavy Assault Rifle Heavy Assault Rifle Rocket Launcher Rocket Launcher [Rating: 12] Favorites ----------- Power Light Ion Engine Engine Light Ion Engine Propulsion Wheel Treads Light Treads Wheel Wheel Utility Medium Storage Unit Device Seismic Detector Storage Medium Storage Unit Processor Improved Targeting Computer Protection Scrap Shield Weapon Heavy Assault Rifle Ballistic Gun Heavy Assault Rifle Launcher Rocket Launcher Build | -11 -10 -10 ------- Run | Yrd Mat Sub Slots Evolved . | . . . Power . | . . . Propulsion . | . . . Utility . | . . . Weapon . | . . . Parts Attached 23 | 7 10 6 Power 4 | 1 2 1 Engine 4 | 1 2 1 Core . | . . . Reactor . | . . . Propulsion 4 | 2 2 . Treads 2 | 2 . . Leg . | . . . Wheel 2 | . 2 . Hover . | . . . Flight . | . . . Utility 6 | 2 3 1 Device 1 | 1 . . Storage 2 | 1 1 . Processor 2 | . 2 . Hackware . | . . . Protection 1 | . . 1 Artifact . | . . . Weapon 9 | 2 3 4 Energy Gun . | . . . Energy Cannon . | . . . Ballistic Gun 7 | 2 3 2 Ballistic Cannon . | . . . Launcher 2 | . . 2 Special Weapon . | . . . Impact Weapon . | . . . Slashing Weapon . | . . . Piercing Weapon . | . . . Special Melee Weapon . | . . . Unidentified Prototypes . | . . . Parts Lost 10 | . 3 7 Power 3 | . 1 2 Propulsion 3 | . 1 2 Utility . | . . . Weapon 4 | . 1 3 Highest Loss Streak 3 | . 3 3 To Critical Strikes . | . . . Average Slot Usage (%) 89 | . 95 82 Engine 12 | . 13 10 Treads 7 | . 15 . Wheel 14 | . 9 20 Device 2 | . 5 . Storage 12 | . 14 11 Processor 9 | . 8 11 Protection 1 | . . 2 Ballistic Gun 22 | . 27 16 Launcher 4 | . . 9 Naked Turns . | . . . Heaviest Build 24 | 13 21 24 Greatest Support 40 | 40 40 20 Greatest Overweight (x) 7 | . 1 7 Average Overweight (x) . | . . 1 Largest Inventory Capacity 10 | 8 10 10 Average Capacity 9 | 7 9 9 Most Carried 10 | 4 10 10 Average Carried 8 | 2 8 8 Final Capacity 10 | 8 10 5 Final Carried 10 | 4 10 3 Class Distribution -------------------- 100% | Mutant Dominant Class ---------------- Mutant | -10/Materials Mutant | -10/Subcaves Resources | -11 -10 -10 ----------- Run | Yrd Mat Sub Matter Collected 1015 | 318 368 329 Remotely . | . . . Salvage Created 1063 | 159 409 495 Parts 84 | 10 33 41 Haulers Intercepted . | . . . Recyclers Shooed 1 | 1 . . Parts Field Recycled . | . . . Retrieved Matter . | . . . Parts Self-Destructed 14 | . . 14 Prevented . | . . . Kills | -11 -10 -10 ------- Run | Yrd Mat Sub Combat Hostiles Destroyed 32 | . 11 21 Guns 17 | . 11 6 AOE 15 | . . 15 Classes Destroyed 10 | 2 6 2 Worker 1 | . 1 . Tunneler 2 | 2 . . Recycler 1 | 1 . . Mechanic 1 | . 1 . Operator 1 | . 1 . Watcher 1 | . 1 . Swarmer 11 | . 4 7 Grunt 9 | . 7 2 Sentry 1 | . . 1 Subdweller 11 | . . 11 Best Kill Streak 6 | 1 5 6 Combat Bots Only 6 | . 5 6 Max Kills in Single Turn 3 | 1 1 3 Gunslinging . | . . . Exploded 3 | . . 3 Melee . | . . . Uniques/NPCs Destroyed . | . . . Combat | -11 -10 -10 -------- Run | Yrd Mat Sub Hostile Shots Fired 175 | . 105 70 Missed 47 | . 27 20 Damage Taken 1614 | . 810 804 Core 270 | . 154 116 Absorbed by Shields . | . . . Core Remaining (%) 100 | 100 . . Volleys Fired 120 | 8 61 51 Largest 2 | 2 2 2 Hottest 56 | 40 46 56 Shots Fired 211 | 16 107 88 Gun 179 | 16 107 56 Cannon . | . . . Launcher 32 | . . 32 Special . | . . . Kinetic 179 | 16 107 56 Thermal . | . . . Explosive 32 | . . 32 Electromagnetic . | . . . Robot Hit Streak 20 | 4 20 10 Robot Miss Streak 3 | 3 3 2 Penetration Max . | . . . Secondary Targets . | . . . Shots Hit Robots 121 | 9 73 39 Core Hits 60 | 4 24 32 Critical Kills 1 | . 1 . Critical Parts Destroyed . | . . . Critical Strikes 1 | . 1 . Destroy 1 | . 1 . Melee Attacks . | . . . Impact . | . . . Slashing . | . . . Piercing . | . . . Sneak Attacks . | . . . Combat Hostiles . | . . . Follow-up Attacks . | . . . Damage Inflicted 2687 | 130 992 1565 Guns 1461 | 130 992 339 Cannons . | . . . Explosions 1226 | . . 1226 Melee . | . . . Ramming . | . . . Kinetic 1461 | 130 992 339 Thermal . | . . . Explosive 1226 | . . 1226 Electromagnetic . | . . . Impact . | . . . Slashing . | . . . Piercing . | . . . Highest Corruption . | . . . Average Corruption . | . . . Corruption Purged . | . . . Corruption Blocked . | . . . Overload Shots . | . . . Overflow Damage . | . . . Projectiles . | . . . Explosions . | . . . Melee . | . . . Knockbacks . | . . . Impact . | . . . Kinetic . | . . . Secondary . | . . . Self-Inflicted Damage 89 | . . 89 Shots 4 | . . 4 Rammed . | . . . Targets Rammed . | . . . Kicked . | . . . Crushed . | . . . Highest Temperature 10 | . 10 . Average Temperature 3 | . 3 . Received Heat Transfer 486 | . 336 150 Siege Activations . | . . . Robots Corrupted . | . . . Combat Hostiles . | . . . Parts Fried . | . . . Impact Corruptions . | . . . Robots Melted . | . . . Combat Hostiles . | . . . Parts Melted . | . . . Heat Transferred . | . . . Parts Sabotaged . | . . . Parts Stolen . | . . . Parts Stripped . | . . . Power Chain Reactions . | . . . Alert | -11 -10 -10 ------- Run | Yrd Mat Sub Peak Influence 226 | 15 226 . Initial 9 | . 9 . Average 95 | 5 109 . Maximum Alert Level 1 | . 1 . Low Security (%) 88 | 100 86 . Level 1 11 | . 13 . Level 2 . | . . . Level 3 . | . . . Level 4 . | . . . Level 5 . | . . . High Security . | . . . Max Security . | . . . Squads Dispatched 3 | . 3 . Investigation . | . . . Extermination . | . . . Reinforcement 3 | . 3 . Assault . | . . . Garrison . | . . . Intercept . | . . . Searches Triggered . | . . . Construction Impeded . | . . . Haulers Reinforced . | . . . Active Scanning Responses . | . . . Cargo Convoy Interrupts . | . . . Stealth | -11 -10 -10 --------- Run | Yrd Mat Sub Distress Signals 2 | . 2 . Communications Jammed . | . . . Distress Signals . | . . . Times Spotted 56 | . 30 26 Peak Tracking Total 8 | . 8 5 Tactical Retreats 3 | . 2 1 Traps | -11 -10 -10 ------- Run | Yrd Mat Sub Traps Triggered . | . . . Indirectly . | . . . Trap Hack Attempts . | . . . Triggered . | . . . Disarmed . | . . . Reprogrammed . | . . . Reused . | . . . Traps Extracted . | . . . Installed . | . . . Triggered . | . . . Machines | -11 -10 -10 ---------- Run | Yrd Mat Sub Machines Disabled . | . . . Max in Single Turn . | . . . Machines Repaired . | . . . Machines Dismantled . | . . . Machines Sabotaged . | . . . Overloaded Fab Kills . | . . . Hacking | -11 -10 -10 --------- Run | Yrd Mat Sub Machines Accessed 1 | . 1 . Terminals 1 | . 1 . Fabricators . | . . . Repair Stations . | . . . Recycling Units . | . . . Scanalyzers . | . . . Garrison Access . | . . . Total Hacks 3 | . 3 . Successful . | . . . Failed 3 | . 3 . Catastrophic . | . . . Database Lockouts . | . . . Manual 3 | . 3 . Terminals 3 | . 3 . Fabricators . | . . . Repair Stations . | . . . Recycling Units . | . . . Scanalyzers . | . . . Garrison Access . | . . . Terminal Hacks . | . . . Fabricator Hacks . | . . . Repair Station Hacks . | . . . Recycling Unit Hacks . | . . . Scanalyzer . | . . . Garrison Access Hacks . | . . . Unauthorized Hacks . | . . . Terminals . | . . . Fabricators . | . . . Repair Stations . | . . . Recycling Units . | . . . Scanalyzers . | . . . Garrison Access . | . . . Data Cores Recovered . | . . . Used . | . . . Hacking Detections 1 | . 1 . Full Trace Events . | . . . Feedback Events . | . . . Feedback Blocked . | . . . Robot Schematics Acquired . | . . . Robots Built . | . . . Authchips . | . . . Time . | . . . Total Robot Build Rating . | . . . Part Schematics Acquired . | . . . Parts Built . | . . . Authchips . | . . . Time . | . . . Total Part Build Rating . | . . . Parts Repaired . | . . . Time . | . . . Parts Recycled . | . . . Recycled Matter . | . . . Retrieved Matter . | . . . Retrieved Components . | . . . Parts Scanalyzed . | . . . Part Schematics Acquired . | . . . Parts Damaged . | . . . Bothacking | -11 -10 -10 ------------ Run | Yrd Mat Sub Used RIF Installer . | . . . Robots Hacked . | . . . Non-combat . | . . . Combat . | . . . Robot Hacks Applied . | . . . Relay Couplers Released . | . . . Fabnet Peak Effective % . | . . . Robots Rewired . | . . . Allies Hacked . | . . . Hacks Repelled . | . . . Allies | -11 -10 -10 -------- Run | Yrd Mat Sub Total Allies . | . . . Largest Group . | . . . Highest-Rated Group . | . . . Highest-Rated Ally . | . . . Total Orders . | . . . Ally Attacks . | . . . Total Damage . | . . . Kills . | . . . Allies Corrupted . | . . . Allies Melted . | . . . Intel | -11 -10 -10 ------- Run | Yrd Mat Sub Robot Analysis Total . | . . . Derelict Logs Recovered . | . . . Drone Launches . | . . . Drone Recoveries . | . . . Exploration | -11 -10 -10 ------------- Run | Yrd Mat Sub Turns Passed 2310 | 167 1124 1019 Spaces Moved 1310 | 83 452 775 Core 65 | 6 . 59 Treads 406 | 77 329 . Legs . | . . . Wheels 839 | . 123 716 Hover . | . . . Flight . | . . . Fastest Speed 50 | 50 80 80 Average Speed 124 | 152 140 111 Slowest Speed 400 | 160 160 400 Overloaded Moves . | . . . Propulsion Burnouts . | . . . Robots Hopped . | . . . Cave-ins Triggered . | . . . Exploration Rate (%) 41 | 5 53 65 Regions Visited 2 Branch Regions 1 Pre-discovered Areas 1 | . . 1 Known Exits Taken . | . . . Unknown Exits Taken 2 | 1 1 . Scrap Searched 1 | . . 1 Spaces Dug 10 | . . 10 Terrain Destroyed 208 | . . 208 Melee . | . . . Projectile . | . . . AOE 208 | . . 208 Terrain Rammed . | . . . Walls Destroyed . | . . . Machines Disabled . | . . . Actions | -11 -10 -10 --------- Run | Yrd Mat Sub Total 1781 | 104 836 841 Wait 304 | 3 297 4 Move 1308 | 82 451 775 Hop . | . . . Pick Up 16 | 4 10 2 Fast Attach 9 | 7 2 . Attach 7 | . 2 5 Detach . | . . . Swap 7 | . 6 1 Drop 10 | . 7 3 Fire 120 | 8 61 51 Melee . | . . . Ram . | . . . Kick . | . . . Crush . | . . . Escape Stasis . | . . . Rewire . | . . . Trap . | . . . Miscellaneous . | . . . Route ------- -11/Scrapyard -10/Materials (discovered 3 exits: [*Mat x2] / [*Sub]) -10/Subcaves (discovered 1 exit: [*Mat]) History --------- Turn | Location | Event 11 | -11/Scrapyard | Discovered new exit (range 16) 168 | -11/Scrapyard | Entered Materials 302 | -10/Materials | Build established: Mutant 537 | -10/Materials | Discovered new exit (range 15) 631 | -10/Materials | Core integrity fell below 50% 672 | -10/Materials | Lost 3 parts (1p1n1w) 684 | -10/Materials | Discovered new exit (range 15) 1269 | -10/Materials | Discovered new exit (range 5) 1292 | -10/Materials | Entered Subcaves 1545 | -10/Subcaves | A swath of the cavern ceiling suddenly collapsed 1643 | -10/Subcaves | Discovered new exit (range 11) 1727 | -10/Subcaves | Ambushed by angry Subdweller bent on revenge 1811 | -10/Subcaves | A swath of the cavern ceiling suddenly collapsed 1875 | -10/Subcaves | Core integrity fell below 20% 2003 | -10/Subcaves | Lost 3 parts (1n2w) 2051 | -10/Subcaves | Learned location of Zion (-6) 2051 | -10/Subcaves | Met a Zionite searching for "candidates" 2118 | -10/Subcaves | Shifting Twisted Machinery released Sub. Beam Cannon 2127 | -10/Subcaves | Shifting Twisted Machinery released Sub. Power Source 2311 | -10/Subcaves | Destroyed by 3D-YTF(R) with Subdweller Machine Gun Last Messages --------------- 02051_ QD-0QE(z): "Hey you! It's really dangerous down here, I feel that you could die at any moment. For your health and safety might I suggest a trip to Zion?" World map updated: -6/Zion. 02063_ QD-0QE(z) destroyed. 02074_ Subatomizers dissect the Disposable Heat Sink. 02077_ GL-8JD(z) suffers critical hit (Destroy). 02077_ GL-8JD(z) destroyed. 02078_ S-10 Pest destroyed. 02084_ Lgt. Ion Engine destroyed. 02087_ Wheel destroyed. 02087_ Critical hit (Burn: +37). Sub. Beam Cannon falls loose from the Twisted Machinery. Sub. Power Source falls loose from the Twisted Machinery. 02134_ Dropped Med. Storage Unit. 02134_ Discarded Imp. Targeting Computer. 02146_ Y-45 Defender destroyed. 02153_ Lgt. Treads fries itself beyond repair. 02161_ Heat Sink fries itself beyond repair. 02164_ Beam Rifle fries itself beyond repair. Map ----- +----------------------------------------------------+ | ?????????????????????????????????????????## | | ??????????????????????????????????????????# | | ?????????????????????????????????????????## | | ?????????????????????????????????????????# | | ?????????????????????????????????????????## | | ??????????????????????????????????????????? | | ??????????????????????????????????????????? | | ??????????????????????????????????????????? | | ??????????????????????????????????????????? | | ??????????????????????????????????????????? | | ??????????????????????????????????????????? | | ??????????????????????????????????????????? | | ??????????????????????????????????????????? | | ??????????????????????????????????????????# | | ??????????????????????????????????????????# | | ??????????????????????????????????????????# | | ?????????????????????????????????????????" | | ??????????????????????????????????????? | | ???????????????????#??????????????????# | | ???????????????????